bitfinex-derivatives/quotes_SOLF0:USTF0_20250518
["timestamp","ask_amount","ask_price","bid_price","bid_amount"]
[1747606920987,5.9762,167.24,167.23,82.38]
[1747606921486,80.88,167.28,167.19,167.7379]
[1747606921983,5.9768,167.23,167.19,80.88]
[1747606923090,5.9761,167.25,167.19,86.8577]
[1747606923280,5.9761,167.25,167.19,80.88]
[1747606923483,3.9064,167.27,167.19,80.88]
[1747606923689,5.975,167.28,167.22,5.9768]
[1747606923987,80.88,167.3,167.19,80.88]
[1747606924282,80.88,167.3,167.2,5.9776]
[1747606924783,3.9064,167.32,167.19,80.88]
[1747606925481,3.9064,167.32,167.21,5.9772]
[1747606925683,3.9064,167.32,167.19,80.88]
[1747606925885,5.975,167.28,167.23,5.9764]
[1747606926392,5.9745,167.29,167.19,80.88]
[1747606926689,5.49772108,167.33,167.19,80.88]
[1747606926890,11.47072108,167.33,167.19,80.88]
[1747606927085,5.49772108,167.33,167.19,80.88]
[1747606927386,5.974,167.31,167.19,80.88]
[1747606927586,5.49772108,167.33,167.25,5.9755]
[1747606927777,5.49772108,167.33,167.25,80.88]
[1747606927979,5.9737,167.32,167.28,5.9747]
[1747606928486,5.9731,167.33,167.28,5.9747]
[1747606928787,5.49772108,167.35,167.29,5.9742]
[1747606929287,5.49772108,167.35,167.28,5.9747]
[1747606930790,5.973,167.33,167.28,5.9747]
[1747606930990,5.973,167.33,167.29,5.9744]
[1747606931183,5.49772108,167.35,167.3,80.88]
[1747606931388,5.49772108,167.39,167.31,5.9733]
[1747606931585,5.49772108,167.39,167.3,80.88]
[1747606931776,5.9716,167.37,167.3,80.88]
[1747606931978,5.49772108,167.39,167.32,5.973]
[1747606932688,5.9716,167.37,167.32,5.973]
[1747606932890,5.49772108,167.39,167.31,5.9736]
[1747606933083,5.49772108,167.39,167.3,80.88]
[1747606933685,5.9722,167.36,167.3,80.88]
[1747606933885,5.49772108,167.39,167.3,80.88]
[1747606934983,80.84,167.38,167.3,80.88]
[1747606935383,5.9731,167.33,167.3,80.88]
[1747606935886,5.9731,167.33,167.24,516.44]
[1747606936192,80.84,167.38,167.25,161.7]
[1747606936383,80.84,167.38,167.27,5.9748]
[1747606936884,80.84,167.38,167.28,5.9746]
[1747606937088,5.9731,167.33,167.28,5.9746]
[1747606937491,80.84,167.38,167.29,5.9743]
[1747606937692,5.9728,167.34,167.29,5.9743]
[1747606937892,80.84,167.38,167.29,5.9743]
[1747606938287,80.84,167.38,167.25,161.7]
[1747606938493,80.84,167.38,167.25,80.86]
[1747606938687,10.52554894,167.37,167.25,80.86]
[1747606938992,5.9743,167.3,167.25,86.8358]
[1747606939991,10.52554894,167.37,167.25,86.8358]
[1747606940795,5.49772108,167.36,167.25,86.8358]
[1747606941188,5.9743,167.3,167.25,86.8358]
[1747606941390,80.82,167.33,167.25,80.86]
[1747606941590,5.9744,167.3,167.25,80.86]
[1747606941789,80.82,167.33,167.25,80.86]
[1747606941989,1.9548,167.35,167.25,80.86]
[1747606942192,5.49772108,167.36,167.25,80.86]
[1747606942387,5.49772108,167.36,167.28,5.9746]
[1747606942695,5.9725,167.35,167.28,80.82]
[1747606942999,5.9725,167.35,167.29,5.9743]
[1747606943497,5.9725,167.35,167.3,5.9738]
[1747606944197,5.9725,167.35,167.31,5.9737]
[1747606944502,5.9727,167.34,167.28,80.82]
[1747606944694,5.9727,167.34,167.3,86.7738]
[1747606944894,86.35772108,167.39,167.3,80.8]
[1747606945095,5.9719,167.36,167.3,80.8]
[1747606945297,86.35772108,167.39,167.31,5.9736]
[1747606945496,5.49772108,167.39,167.3,80.8]
[1747606945893,86.31772108,167.39,167.3,80.8]
[1747606946092,86.31772108,167.39,167.3,86.7739]
[1747606946394,86.31772108,167.39,167.3,80.8]
[1747606946590,5.49772108,167.39,167.3,80.8]
[1747606946993,5.9714,167.38,167.3,80.8]
[1747606947192,5.49772108,167.39,167.3,80.8]
[1747606947391,5.49772108,167.41,167.3,80.8]
[1747606948195,5.9715,167.38,167.33,5.9729]
[1747606948395,5.9715,167.38,167.32,80.8]
[1747606948797,5.9715,167.38,167.34,5.9723]
[1747606948997,5.9709,167.39,167.34,5.9723]
[1747606949297,5.49772108,167.41,167.34,5.9723]
[1747606949500,5.9712,167.38,167.34,5.9723]
[1747606949694,5.49772108,167.41,167.35,5.9722]
[1747606949891,5.9714,167.38,167.32,80.8]
[1747606950291,5.9714,167.38,167.34,5.9724]
[1747606950500,5.9707,167.4,167.32,80.8]
[1747606950693,5.9707,167.4,167.35,5.9722]
[1747606950897,5.9707,167.4,167.33,80.8]
[1747606951404,5.9702,167.41,167.33,80.8]
[1747606951798,4.0255,167.43,167.36,5.9716]
[1747606951994,4.0255,167.43,167.33,80.8]
[1747606952193,4.0255,167.43,167.27,5.55963228]
[1747606952389,5.971,167.39,167.28,161.58]
[1747606952598,84.8255,167.43,167.28,161.58]
[1747606952998,5.9715,167.38,167.28,161.58]
[1747606953194,84.8255,167.43,167.28,161.58]
[1747606953396,90.32322108,167.43,167.28,161.58]
[1747606953796,9.52322108,167.43,167.28,161.58]
[1747606954110,5.9711,167.39,167.28,161.58]
[1747606954998,5.9704,167.41,167.28,161.58]
[1747606955301,4.0255,167.43,167.28,161.58]
[1747606955902,161.56,167.47,167.29,10.52554894]
[1747606956292,80.78,167.46,167.29,10.52554894]
[1747606956996,80.78,167.46,167.36,5.9718]
[1747606957197,80.78,167.46,167.36,86.7518]
[1747606957399,5.9707,167.4,167.36,86.7518]
[1747606957600,80.76,167.46,167.36,80.78]
[1747606958101,5.9696,167.43,167.38,5.9711]
[1747606958402,5.9698,167.42,167.36,80.78]
[1747606958600,80.78,167.47,167.38,5.9709]
[1747606958795,80.78,167.47,167.36,80.78]
[1747606959297,80.78,167.47,167.37,5.9713]
[1747606959902,5.9704,167.41,167.36,86.7518]
[1747606960308,80.78,167.47,167.36,80.78]
[1747606960504,80.78,167.47,167.37,5.9713]
[1747606960805,80.76,167.46,167.36,80.78]
[1747606961198,10.52554894,167.45,167.34,80.76]
[1747606961517,10.52554894,167.41,167.27,161.52]
[1747606961708,165.3812,167.4,167.27,161.52]
[1747606962608,5.9732,167.33,167.28,5.9745]
[1747606962811,165.3812,167.4,167.29,5.54754185]
[1747606963309,5.9731,167.33,167.29,5.54754185]
[1747606963705,165.3812,167.4,167.29,5.54754185]
[1747606963907,5.9731,167.33,167.29,5.54754185]
[1747606964105,165.3812,167.4,167.29,5.54754185]
[1747606964301,10.52554894,167.37,167.29,5.54754185]
[1747606964509,1.9813,167.36,167.29,5.54754185]
[1747606964704,161.52,167.35,167.29,5.54754185]
[1747606964904,5.9733,167.33,167.29,5.54754185]
[1747606965105,161.52,167.35,167.29,5.54754185]
[1747606966910,167.4923,167.35,167.31,5.9737]
[1747606967311,161.52,167.35,167.29,5.54754185]
[1747606967614,161.52,167.35,167.24,516.44]
[1747606968510,7.9534,167.36,167.24,516.44]
[1747606968712,1.9813,167.36,167.24,516.44]
[1747606970014,5.9734,167.32,167.27,5.975]
[1747606970715,5.9731,167.33,167.28,5.9745]
[1747606971216,1.9813,167.36,167.28,5.9745]
[1747606971417,80.74,167.35,167.27,5.975]
[1747606971716,80.74,167.35,167.24,516.44]
[1747606972414,5.9731,167.33,167.28,5.9745]
[1747606972612,80.74,167.35,167.28,5.9745]
[1747606973017,5.973,167.33,167.28,5.9745]
[1747606973217,80.74,167.35,167.28,5.9745]
[1747606973609,5.9732,167.33,167.29,5.9742]
[1747606973810,80.74,167.35,167.29,5.9742]
[1747606974014,1.9813,167.36,167.24,516.44]
[1747606974717,7.9534,167.36,167.32,5.9731]
[1747606974917,7.9534,167.36,167.29,80.74]
[1747606975116,1.9813,167.36,167.29,80.74]
[1747606975418,5.50226707,167.38,167.29,80.74]
[1747606976519,5.50226707,167.38,167.36,5.9719]
[1747606977019,5.50226707,167.38,167.35,5.9721]
[1747606977624,5.50226707,167.38,167.29,80.74]
[1747606978022,5.9709,167.39,167.29,80.74]
[1747606978319,5.9705,167.4,167.29,80.74]
[1747606978514,1.8739,167.41,167.29,80.74]
[1747606978713,5.50226707,167.44,167.3,10.52554894]
[1747606979117,5.9698,167.42,167.37,5.9712]
[1747606979316,5.9698,167.42,167.37,80.72]
[1747606979619,5.50226707,167.44,167.39,5.9708]
[1747606980122,5.50226707,167.44,167.37,80.72]
[1747606980324,5.9706,167.4,167.36,5.9718]
[1747606980518,1.972,167.45,167.32,80.72]
[1747606981224,5.9704,167.41,167.32,80.72]
[1747606981624,1.972,167.45,167.32,80.72]
[1747606983126,5.9695,167.43,167.39,5.9706]
[1747606983327,5.9695,167.43,167.37,80.72]
[1747606983529,5.9695,167.43,167.37,80.7]
[1747606983718,5.9695,167.43,167.39,5.9705]
[1747606983925,1.972,167.45,167.37,80.7]
[1747606984233,1.972,167.45,167.38,5.9709]
[1747606984632,5.9697,167.43,167.37,80.7]
[1747606984832,5.9697,167.43,167.39,5.9708]
[1747606985133,5.9699,167.42,167.37,80.7]
[1747606985731,5.9699,167.42,167.38,5.9709]
[1747606987734,5.9695,167.43,167.39,5.9708]
[1747606988535,5.9698,167.42,167.39,5.9708]
[1747606989342,5.9695,167.43,167.39,5.9708]
[1747606990141,5.9698,167.42,167.39,5.9708]
[1747606990841,5.9695,167.43,167.39,5.9708]
[1747606991854,1.972,167.45,167.38,5.971]
[1747606992149,1.972,167.45,167.37,80.7]
[1747606992752,5.9695,167.43,167.39,5.9708]
[1747606992951,1.972,167.45,167.37,80.7]
[1747606993552,8.53824239,167.45,167.37,80.7]
[1747606993750,8.53824239,167.45,167.33,80.7]
[1747606994145,1.972,167.45,167.33,87.26624239]
[1747606994553,5.97,167.42,167.33,87.26624239]
[1747606994950,5.97,167.42,167.33,80.7]
[1747606995151,1.972,167.45,167.33,80.7]
[1747606995548,5.9703,167.41,167.37,5.9714]
[1747606995748,1.972,167.45,167.33,80.7]
[1747606997356,5.9698,167.42,167.33,80.7]
[1747606997543,1.972,167.45,167.33,80.7]
[1747606997949,5.9706,167.4,167.35,5.9721]
[1747606998253,7.47426707,167.45,167.33,80.7]
[1747606998653,5.9698,167.42,167.38,5.9711]
[1747606998948,7.47426707,167.45,167.33,80.7]
[1747606999153,7.47426707,167.45,167.33,87.26624239]
[1747606999855,7.47426707,167.45,167.37,5.9713]
[1747606999856,5.9701,167.41,167.37,5.9713]
[1747607000058,7.47426707,167.45,167.37,5.9713]
[1747607000655,1.972,167.45,167.36,5.9718]
[1747607001053,1.972,167.45,167.33,80.7]
[1747607001556,8.53824239,167.45,167.33,161.26]
[1747607002060,8.53824239,167.45,167.35,5.972]
[1747607002559,5.9712,167.38,167.34,5.9724]
[1747607002760,8.53824239,167.45,167.33,80.7]
[1747607003457,8.53824239,167.45,167.33,86.6727]
[1747607003849,8.53824239,167.45,167.33,80.7]
[1747607003850,6.56624239,167.42,167.33,80.7]
[1747607004054,82.4509,167.41,167.33,80.7]
[1747607004659,88.4212,167.41,167.36,5.9716]
[1747607004957,82.4509,167.41,167.33,80.7]
[1747607005260,5.9708,167.4,167.35,5.9721]
[1747607005452,5.9708,167.4,167.33,80.7]
[1747607005653,82.4509,167.41,167.33,80.7]
[1747607005949,88.4212,167.41,167.36,5.9716]
[1747607006149,82.4509,167.41,167.36,5.9716]
[1747607006458,5.9707,167.4,167.36,5.9716]
[1747607006660,82.4509,167.41,167.36,5.9716]
[1747607006860,1.9109,167.41,167.33,80.7]
[1747607007160,7.47426707,167.45,167.33,80.7]
[1747607007349,7.47426707,167.45,167.34,80.52]
[1747607007865,7.47426707,167.45,167.41,5.97]
[1747607008765,13.44306707,167.45,167.41,5.97]
[1747607008962,7.47426707,167.45,167.41,5.97]
[1747607009762,5.50226707,167.45,167.41,5.97]
[1747607009962,11.47106707,167.45,167.41,5.97]
[1747607010262,5.50226707,167.49,167.39,80.48]
[1747607010463,5.9678,167.48,167.39,80.48]
[1747607010764,5.50226707,167.49,167.39,80.48]
[1747607011366,5.50226707,167.49,167.45,5.9684]
[1747607012265,11.46956707,167.49,167.45,5.9684]
[1747607012467,5.50226707,167.49,167.45,5.9684]
[1747607012665,5.50226707,167.49,167.44,86.489]
[1747607012865,11.46976707,167.49,167.44,86.489]
[1747607013061,11.46976707,167.49,167.44,80.52]
[1747607013257,11.46976707,167.49,167.45,5.9686]
[1747607013465,5.9676,167.48,167.45,5.9686]
[1747607013665,5.9676,167.48,167.44,80.52]
[1747607013871,113.05412954,167.5,167.44,80.52]
[1747607014267,119.62037193,167.5,167.4,80.52]
[1747607014970,5.9689,167.45,167.4,86.4902]
[1747607015466,119.62037193,167.5,167.4,80.52]
[1747607015677,80.52,167.49,167.4,80.52]
[1747607015964,80.52,167.49,167.35,521.53787508]
[1747607015965,6.56624239,167.47,167.35,602.05787508]
[1747607016170,5.9706,167.4,167.35,608.02987508]
[1747607016370,3.9048,167.46,167.35,608.02987508]
[1747607016571,2.0565,167.45,167.35,608.02987508]
[1747607016774,5.9707,167.4,167.35,602.472]
[1747607017074,7.55876707,167.45,167.35,596.5]
[1747607017876,5.9709,167.39,167.35,596.5]
[1747607018275,7.55876707,167.45,167.35,596.5]
[1747607018464,5.9694,167.43,167.35,596.5]
[1747607018668,7.55876707,167.45,167.35,596.5]
[1747607019575,5.97,167.42,167.35,596.5]
[1747607019773,7.55876707,167.45,167.35,596.5]
[1747607020268,7.55876707,167.45,167.35,602.472]
[1747607020772,5.9707,167.4,167.35,602.472]
[1747607020974,5.50226707,167.43,167.38,5.9708]
[1747607021476,5.50226707,167.43,167.39,5.9707]
[1747607022069,5.50226707,167.43,167.4,80.52]
[1747607022274,5.50226707,167.43,167.42,5.9697]
[1747607023773,118.55639661,167.5,167.43,5.9693]
[1747607023975,118.55639661,167.5,167.41,80.52]
[1747607024175,5.9675,167.49,167.41,80.52]
[1747607024378,118.55639661,167.5,167.44,5.9687]
[1747607025379,5.968,167.47,167.43,5.9693]
[1747607025678,5.968,167.47,167.41,80.52]
[1747607025882,118.55639661,167.5,167.41,80.52]
[1747607026181,5.9679,167.48,167.44,5.969]
[1747607026482,118.55639661,167.5,167.44,5.969]
[1747607026677,118.55639661,167.5,167.41,80.52]
[1747607027073,1.9905,167.49,167.41,80.52]
[1747607027274,5.9693,167.44,167.37,160.84]
[1747607027776,80.52,167.48,167.39,5.9708]
[1747607028482,5.9693,167.44,167.39,5.9708]
[1747607028681,5.9693,167.44,167.4,5.9704]
[1747607029181,80.32,167.46,167.37,80.52]
[1747607029581,3.8794,167.45,167.37,80.52]
[1747607029782,5.97,167.42,167.37,80.52]
[1747607030192,5.97,167.42,167.37,86.4915]
[1747607030687,5.9702,167.41,167.37,86.4915]
[1747607031488,5.9698,167.42,167.38,5.971]
[1747607031887,5.50226707,167.44,167.37,80.52]
[1747607033689,5.97,167.42,167.38,5.9711]
[1747607034791,85.76226707,167.44,167.37,80.52]
[1747607034792,5.9701,167.41,167.37,86.4914]
[1747607035084,5.9701,167.41,167.37,80.52]
[1747607035494,5.9705,167.4,167.37,80.52]
[1747607036893,5.9705,167.4,167.37,86.4915]
[1747607037294,5.9702,167.41,167.37,86.4915]
[1747607038694,5.9705,167.4,167.37,86.4915]
[1747607039997,5.9702,167.41,167.37,86.4915]
[1747607040199,80.26,167.44,167.37,80.52]
[1747607040693,5.9705,167.4,167.37,80.52]
[1747607041995,5.9705,167.4,167.32,80.22]
[1747607042200,5.9702,167.41,167.33,80.26]
[1747607042403,5.9702,167.41,167.37,5.9715]
[1747607042601,80.26,167.44,167.33,80.26]
[1747607042900,85.76226707,167.44,167.33,80.26]
[1747607043097,85.76226707,167.44,167.36,5.9716]
[1747607043401,5.9707,167.4,167.36,5.9716]
[1747607043603,5.9707,167.4,167.37,5.9715]
[1747607043903,5.50226707,167.44,167.33,80.26]
[1747607044593,5.9695,167.43,167.33,80.26]
[1747607045604,5.9695,167.43,167.39,5.9705]
[1747607045806,5.9695,167.43,167.33,80.26]
[1747607046506,5.9695,167.43,167.4,5.9704]
[1747607046710,5.9691,167.44,167.34,6.56624239]
[1747607047209,5.50226707,167.46,167.34,6.56624239]
[1747607047706,5.50226707,167.46,167.44,5.969]
[1747607048408,5.50226707,167.46,167.45,5.9687]
[1747607049502,5.9677,167.48,167.45,5.9687]
[1747607049707,3.8679,167.49,167.4,80.26]
[1747607050618,5.9687,167.45,167.42,5.9695]
[1747607051110,5.9697,167.43,167.4,5.9702]
[1747607051309,80.1,167.47,167.37,80.26]
[1747607051898,80.1,167.47,167.41,5.9701]
[1747607051899,5.9693,167.44,167.41,5.9701]
[1747607052204,5.50226707,167.48,167.37,80.26]
[1747607052411,5.9681,167.47,167.37,80.26]
[1747607053907,5.9681,167.47,167.43,5.9691]
[1747607054117,5.50226707,167.48,167.42,80.26]
[1747607054408,5.50226707,167.48,167.47,5.968]
[1747607055307,7.38686707,167.52,167.47,5.968]
[1747607055710,7.38686707,167.52,167.45,5.9685]
[1747607056009,5.50226707,167.52,167.43,80.26]
[1747607057210,5.50226707,167.52,167.49,5.967]
[1747607057412,5.50226707,167.52,167.43,80.26]
[1747607057606,11.46866707,167.52,167.48,5.9675]
[1747607057808,11.46866707,167.52,167.43,80.26]
[1747607058207,5.50226707,167.52,167.43,86.82624239]
[1747607058610,5.50226707,167.55,167.43,86.82624239]
[1747607058811,11.46746707,167.55,167.51,5.9663]
[1747607059306,18.34089025,167.69,167.53,6.55207388]
[1747607059515,1.19310385,167.63,167.62,6.54320434]
[1747607059811,18.34089025,167.69,167.62,166.74320434]
[1747607060007,1.19274809,167.68,167.62,160.2]
[1747607060912,5.961,167.67,167.62,160.2]
[1747607061111,1.19289037,167.66,167.62,160.2]
[1747607061508,1.19289037,167.66,167.62,675.82]
[1747607062717,1.19289037,167.66,167.65,5.9616]
[1747607062919,1.9465,167.77,167.62,675.82]
[1747607063117,81.8465,167.77,167.62,675.82]
[1747607064014,5.9594,167.72,167.65,5.9612]
[1747607064516,5.9594,167.72,167.65,5.9616]
[1747607064818,5.9594,167.72,167.62,675.82]
[1747607065218,5.9594,167.72,167.65,5.9616]
[1747607065421,1.93,167.73,167.62,675.82]
[1747607067220,5.9597,167.71,167.66,5.9609]
[1747607067419,1.93,167.73,167.67,79.84]
[1747607068625,81.7465,167.77,167.7,5.9598]
[1747607069122,81.7465,167.77,167.67,79.84]
[1747607069311,1.9465,167.77,167.67,159.62]
[1747607070818,2.0748,167.78,167.67,159.62]
[1747607071122,79.84,167.83,167.67,159.62]
[1747607071123,1.8976,167.82,167.67,159.62]
[1747607071324,7.8535,167.82,167.77,5.9573]
[1747607071524,1.8976,167.82,167.78,79.82]
[1747607072426,7.8534,167.82,167.78,79.82]
[1747607072718,1.8976,167.82,167.78,79.82]
[1747607072923,5.956,167.81,167.78,79.82]
[1747607073126,1.8976,167.82,167.78,79.82]
[1747607073724,1.8976,167.82,167.72,515.26]
[1747607073925,1.8976,167.82,167.73,159.5]
[1747607074127,5.9569,167.79,167.73,165.4587]
[1747607074429,1.8976,167.82,167.73,159.5]
[1747607074620,5.957,167.78,167.73,165.4587]
[1747607075324,5.957,167.78,167.74,5.9584]
[1747607075525,1.8976,167.82,167.73,159.5]
[1747607076814,1.8976,167.82,167.74,5.9583]
[1747607077221,1.8976,167.82,167.73,159.5]
[1747607077626,1.8976,167.82,167.76,5.9574]
[1747607077915,1.8976,167.82,167.73,159.5]
[1747607078119,1.8976,167.82,167.75,5.9579]
[1747607078326,1.8976,167.82,167.73,159.5]
[1747607078526,1.8976,167.82,167.78,5.9568]
[1747607078724,2.0141,167.84,167.79,79.78]
[1747607078929,81.5,167.89,167.79,79.78]
[1747607079733,81.5,167.89,167.79,85.7363]
[1747607079920,5.9554,167.83,167.79,79.78]
[1747607080225,81.48,167.89,167.79,79.78]
[1747607081126,5.9562,167.8,167.79,79.78]
[1747607081929,1.88,167.89,167.79,79.78]
[1747607082123,79.56,167.88,167.79,79.78]
[1747607082329,79.56,167.88,167.79,85.7363]
[1747607082528,5.9551,167.84,167.79,85.7363]
[1747607082829,79.56,167.88,167.79,79.78]
[1747607083831,5.9555,167.83,167.79,79.78]
[1747607084529,5.9555,167.83,167.79,85.7366]
[1747607085128,5.9549,167.84,167.79,79.78]
[1747607085335,79.56,167.88,167.79,79.78]
[1747607085735,79.56,167.88,167.79,85.7365]
[1747607085931,1.88,167.89,167.79,79.78]
[1747607086131,79.5,167.88,167.79,79.78]
[1747607086328,5.9549,167.84,167.8,5.956]
[1747607087728,79.5,167.88,167.79,79.78]
[1747607088033,81.36,167.89,167.79,79.78]
[1747607088233,5.9541,167.86,167.81,5.9559]
[1747607088735,5.9541,167.86,167.82,5.9555]
[1747607088939,5.9541,167.86,167.79,159.24]
[1747607089236,5.9541,167.86,167.81,5.9556]
[1747607089637,1.88,167.89,167.81,5.9556]
[1747607089638,5.9545,167.85,167.81,5.9556]
[1747607090232,5.9541,167.86,167.82,5.9555]
[1747607090426,1.88,167.89,167.79,165.77427166]
[1747607091035,1.88,167.89,167.83,5.9549]
[1747607091340,1.88,167.89,167.84,79.74]
[1747607092043,5.9545,167.85,167.84,79.74]
[1747607093241,5.9558,167.82,167.79,79.46]
[1747607093434,1.88,167.89,167.8,79.74]
[1747607093737,85.93427166,167.88,167.8,79.74]
[1747607093944,85.93427166,167.88,167.76,79.74]
[1747607094443,5.9564,167.8,167.76,79.74]
[1747607094742,85.93427166,167.88,167.76,79.74]
[1747607094941,5.9568,167.79,167.76,79.74]
[1747607096144,5.957,167.78,167.76,79.74]
[1747607097139,5.9567,167.79,167.76,79.74]
[1747607098044,6.53427166,167.88,167.76,79.74]
[1747607098343,79.34,167.87,167.76,79.74]
[1747607098643,5.9559,167.81,167.77,5.9573]
[1747607098843,5.9559,167.81,167.76,79.74]
[1747607099144,79.34,167.87,167.76,85.6973]
[1747607099343,79.34,167.87,167.76,79.74]
[1747607099742,79.34,167.87,167.76,85.6976]
[1747607100139,79.34,167.87,167.76,79.74]
[1747607100336,5.9565,167.8,167.76,79.74]
[1747607100737,5.956,167.81,167.76,85.6974]
[1747607100938,1.88,167.89,167.76,79.74]
[1747607101136,1.88,167.89,167.76,86.27427166]
[1747607101341,79.3,167.88,167.79,5.9566]
[1747607101942,1.88,167.89,167.79,5.9566]
[1747607102137,1.88,167.89,167.78,79.3]
[1747607102445,5.954,167.87,167.78,79.3]
[1747607102840,6.53427166,167.94,167.79,6.53427166]
[1747607103144,5.9537,167.88,167.79,6.53427166]
[1747607103543,83.0928,167.93,167.79,6.53427166]
[1747607104045,83.0928,167.93,167.82,5.9553]
[1747607104245,83.0928,167.93,167.83,79.38]
[1747607104444,5.9539,167.87,167.83,79.38]
[1747607105044,5.9527,167.9,167.83,79.38]
[1747607105247,5.9527,167.9,167.83,158.64]
[1747607105546,5.9527,167.9,167.85,5.9544]
[1747607105851,5.9523,167.91,167.83,158.64]
[1747607106042,79.24,167.97,167.85,6.53427166]
[1747607106241,4.0128,167.98,167.88,5.9532]
[1747607106443,5.9516,167.94,167.89,79.38]
[1747607106741,79.24,167.97,167.89,79.38]
[1747607106944,83.2328,167.98,167.89,79.38]
[1747607107146,4.0128,167.98,167.89,79.38]
[1747607108345,6.53427166,167.97,167.89,79.38]
[1747607108751,5.9527,167.9,167.89,79.38]
[1747607109240,5.9524,167.91,167.89,79.38]
[1747607109446,4.0128,167.98,167.89,79.38]
[1747607109947,5.9519,167.93,167.89,79.38]
[1747607110344,4.0128,167.98,167.89,79.38]
[1747607110545,5.9515,167.94,167.89,85.3328]
[1747607110948,5.9515,167.94,167.89,79.38]
[1747607111450,5.9515,167.94,167.89,85.3329]
[1747607111747,5.9517,167.93,167.89,79.38]
[1747607112141,5.9514,167.94,167.89,79.38]
[1747607112342,83.1728,167.98,167.89,79.38]
[1747607112545,83.1728,167.98,167.82,514.74]
[1747607112850,83.1728,167.98,167.83,158.5]
[1747607113155,10.44400555,167.94,167.83,79.36]
[1747607113351,81.0075,167.93,167.83,79.36]
[1747607113545,79.36,167.92,167.83,79.36]
[1747607113949,79.36,167.92,167.81,5.52725794]
[1747607114845,79.1,167.91,167.81,5.52725794]
[1747607116152,5.954,167.87,167.82,5.9554]
[1747607116456,79.1,167.91,167.83,79.36]
[1747607116851,3.9869,167.9,167.83,79.36]
[1747607117154,5.9547,167.85,167.83,79.36]
[1747607117559,3.9869,167.9,167.83,79.36]
[1747607117750,5.9544,167.86,167.83,79.36]
[1747607118054,3.9869,167.9,167.83,79.36]
[1747607118257,5.9536,167.88,167.83,85.3151]
[1747607118458,3.9869,167.9,167.83,85.3151]
[1747607119056,5.954,167.87,167.83,79.36]
[1747607119259,3.9869,167.9,167.83,79.36]
[1747607119557,5.9544,167.86,167.83,79.36]
[1747607120460,3.9869,167.9,167.83,79.36]
[1747607120958,5.9538,167.87,167.83,79.36]
[1747607121149,3.9869,167.9,167.83,79.36]
[1747607121649,5.9534,167.88,167.83,85.3151]
[1747607121957,5.9534,167.88,167.83,79.36]
[1747607122761,3.9869,167.9,167.83,79.36]
[1747607124060,5.9547,167.85,167.83,79.36]
[1747607124662,3.9869,167.9,167.83,79.36]
[1747607125053,1.8875,167.93,167.83,79.36]
[1747607125258,3.8564,167.95,167.83,79.36]
[1747607125458,3.8564,167.95,167.84,525.06400555]
[1747607126163,7.31776863,167.96,167.84,525.06400555]
[1747607126764,13.26836863,167.96,167.91,5.9523]
[1747607126966,13.26836863,167.96,167.92,79.0]
[1747607127560,7.31776863,167.96,167.92,79.0]